bitfinex-derivatives/quotes_SOLF0:USTF0_20250413
["timestamp","ask_amount","ask_price","bid_price","bid_amount"]
[1744528653308,0.05732313,129.13,129.08,28.58]
[1744528653309,0.05732313,129.13,129.12,7.7461]
[1744528661419,2.313e-05,129.13,129.12,7.7461]
[1744528664921,2.313e-05,129.13,129.11,7.80303925]
[1744528665118,2.313e-05,129.13,129.11,0.05633925]
[1744528665321,4.21952313,129.13,129.11,0.05633925]
[1744528665923,18.11708755,129.12,129.11,0.05633925]
[1744528666124,10.37098755,129.12,129.11,0.05633925]
[1744528668028,18.11708755,129.12,129.11,0.05633925]
[1744528668623,18.11098755,129.12,129.07,7.7487]
[1744528668822,10.37098755,129.09,129.07,7.7487]
[1744528669126,10.37098755,129.11,129.04,28.58]
[1744528669725,0.05019278,129.09,129.04,28.58]
[1744528671329,0.05019278,129.09,129.08,7.7485]
[1744528671731,0.05019278,129.09,129.04,28.58]
[1744528671925,0.05019278,129.09,129.07,7.7489]
[1744528672230,0.05019278,129.09,129.04,28.58]
[1744528672420,0.05019278,129.09,129.08,7.7485]
[1744528685247,6.7109695,129.09,129.08,7.7485]
[1744528686046,0.05019278,129.09,129.08,7.7485]
[1744528688040,6.7109695,129.09,129.08,7.7485]
[1744528688243,0.05019278,129.09,129.08,7.7485]
[1744528694445,6.7109695,129.09,129.07,28.6]
[1744528694946,6.7109695,129.09,129.07,36.3487]
[1744528695144,6.7109695,129.09,129.07,28.6]
[1744528696048,6.7109695,129.09,129.08,7.7485]
[1744528697347,0.05019278,129.09,129.08,7.7485]
[1744528699648,0.05019278,129.09,129.07,28.6]
[1744528699649,6.7109695,129.09,129.07,7.7488]
[1744528699842,6.7109695,129.09,129.04,35.26077672]
[1744528700038,6.7109695,129.09,129.08,7.7485]
[1744528703045,6.7109695,129.09,129.07,7.7488]
[1744528703647,14.4593695,129.09,129.04,28.6]
[1744528703842,6.66077672,129.07,129.04,28.6]
[1744528704238,6.66077672,129.05,129.01,648.66077672]
[1744528704550,0.05768482,129.04,129.01,648.66077672]
[1744528704939,0.05768482,129.04,129.03,7.7515]
[1744528707853,0.05768482,129.04,129.03,14.41227672]
[1744528708459,0.05768482,129.04,129.03,7.7515]
[1744528720566,0.05768482,129.04,129.02,7.7518]
[1744528724366,0.05768482,129.04,129.03,7.7515]
[1744528733176,1.9821,129.08,129.06,7.7491]
[1744528733869,6.66077672,129.07,129.06,7.7491]
[1744528734573,8.69485479,129.08,129.06,7.7491]
[1744528735368,8.69485479,129.08,129.05,0.05274344]
[1744528735572,0.05197807,129.08,129.07,7.7491]
[1744528735766,0.05197807,129.08,129.07,36.3491]
[1744528736169,6.71275479,129.08,129.07,7.7491]
[1744528736672,6.71275479,129.08,129.05,0.05274344]
[1744528736873,6.66077672,129.06,129.05,0.05274344]
[1744528738473,6.66077672,129.06,129.05,7.80304344]
[1744528740974,6.66077672,129.06,129.05,0.05274344]
[1744528741777,6.66077672,129.06,129.05,7.80304344]
[1744528742672,4.1263,129.07,129.06,7.7497]
[1744528744579,6.71275479,129.08,129.07,7.7491]
[1744528745475,0.05197807,129.08,129.07,7.7491]
[1744528747182,0.05197807,129.08,129.07,14.40987672]
[1744528747980,10.71747672,129.13,129.11,7.7466]
[1744528749180,10.77545882,129.13,129.11,7.80395953]
[1744528750082,8.77465882,129.13,129.12,7.7461]
[1744528750380,0.0579821,129.13,129.12,7.7461]
[1744528753889,0.0579821,129.13,129.11,7.80385953]
[1744528754082,6.71875882,129.13,129.11,0.05735953]
[1744528754283,4.2421,129.12,129.06,28.58]
[1744528754490,6.66077672,129.1,129.07,7.749]
[1744528754787,6.66077672,129.1,129.06,28.58]
[1744528754988,7.7468,129.11,129.06,28.58]
[1744528755289,10.90287672,129.12,129.08,7.7482]
[1744528755290,0.059329,129.1,129.08,7.7482]
[1744528755690,0.059329,129.1,129.07,6.71410983]
[1744528755893,0.059329,129.1,129.09,14.40867672]
[1744528756191,0.059329,129.1,129.09,42.98867672]
[1744528758589,0.059329,129.1,129.09,36.3279]
[1744528765691,0.059329,129.1,129.09,42.98867672]
[1744528771300,0.059329,129.1,129.09,36.3279]
[1744528771696,0.059329,129.1,129.09,7.7479]
[1744528774902,6.72010572,129.1,129.08,7.7484]
[1744528775403,6.72010572,129.1,129.07,0.05333311]
[1744528775900,14.46740572,129.1,129.07,7.80193311]
[1744528777103,6.72010572,129.1,129.07,0.05333311]
[1744528777405,0.059329,129.1,129.07,0.05333311]
[1744528777904,0.059329,129.1,129.09,7.7479]
[1744528781309,0.059329,129.1,129.09,14.40867672]
[1744528781515,0.059329,129.1,129.09,42.98867672]
[1744528783816,9.7829,129.14,129.11,7.7462]
[1744528784916,9.7829,129.14,129.11,7.797634]
[1744528785119,9.8341162,129.14,129.12,7.7461]
[1744528785821,2.0891162,129.14,129.12,7.7461]
[1744528786217,0.0512162,129.14,129.12,7.7461]
[1744528786719,0.0512162,129.14,129.13,7.7455]
[1744528786915,0.0512162,129.14,129.13,14.40627672]
[1744528788916,8.68967672,129.19,129.17,7.7431]
[1744528789118,6.66077672,129.19,129.13,6.66077672]
[1744528790218,6.66077672,129.19,129.17,7.7428]
[1744528790420,6.71409655,129.19,129.17,7.7428]
[1744528790913,0.05331983,129.19,129.18,7.7425]
[1744528794022,0.05331983,129.19,129.15,35.29734794]
[1744528794023,0.05331983,129.19,129.15,0.05657122]
[1744528794218,6.71409655,129.19,129.15,0.05657122]
[1744528794419,6.66077672,129.17,129.15,0.05657122]
[1744528799127,7.7437,129.16,129.15,0.05657122]
[1744528801621,14.40407672,129.17,129.15,0.05657122]
[1744528801826,6.66077672,129.17,129.15,0.05657122]
[1744528802234,6.66077672,129.17,129.15,7.80047122]
[1744528802727,6.66077672,129.18,129.16,7.7437]
[1744528802934,14.45629655,129.19,129.16,7.7437]
[1744528803133,6.71409655,129.19,129.15,0.05657122]
[1744528803431,0.05331983,129.19,129.18,7.7425]
[1744528803632,6.66077672,129.24,129.18,6.66077672]
[1744528803833,14.39997672,129.24,129.21,7.7403]
[1744528804027,6.66077672,129.22,129.21,7.7403]
[1744528804226,6.66077672,129.24,129.19,28.56]
[1744528804430,111.8409908,129.26,129.2,6.66077672]
[1744528804832,0.05467756,129.24,129.22,0.05375681]
[1744528805636,0.05467756,129.24,129.22,35.27453353]
[1744528806236,6.71545428,129.24,129.22,0.05375681]
[1744528806838,14.45435428,129.24,129.22,0.05375681]
[1744528807133,6.71545428,129.24,129.22,0.05375681]
[1744528807339,0.05467756,129.24,129.23,7.7395]
[1744528810836,35.22077672,129.29,129.22,35.27453353]
[1744528811041,10.83337672,129.3,129.24,6.66077672]
[1744528811241,10.83337672,129.3,129.25,28.56]
[1744528811940,0.05588043,129.29,129.27,7.7367]
[1744528814243,0.05588043,129.29,129.26,7.78656438]
[1744528814445,6.66077672,129.28,129.26,0.04906438]
[1744528814642,8.71187672,129.28,129.21,28.54]
[1744528814843,6.66077672,129.25,129.23,7.7395]
[1744528815442,7.7382,129.26,129.23,7.7395]
[1744528815739,7.79094544,129.26,129.23,7.79344688]
[1744528816442,7.79094544,129.26,129.23,0.05394688]
[1744528816839,0.05274544,129.26,129.23,0.05394688]
[1744528817545,7.79074544,129.26,129.23,7.79304688]
[1744528817944,7.79074544,129.26,129.23,0.05394688]
[1744528818144,7.7383,129.25,129.23,0.05394688]
[1744528818346,0.05274544,129.26,129.23,0.05394688]
[1744528818844,7.79084544,129.26,129.23,0.05394688]
[1744528819146,0.05274544,129.26,129.23,0.05394688]
[1744528820248,7.7387,129.25,129.23,0.05394688]
[1744528821446,7.7389,129.24,129.23,0.05394688]
[1744528821645,10.38210881,129.24,129.17,28.54]
[1744528821845,2.0379,129.25,129.17,28.54]
[1744528821846,10.38210881,129.22,129.17,28.54]
[1744528822047,7.7412,129.21,129.17,36.2828]
[1744528822449,7.7418,129.2,129.17,28.54]
[1744528822645,0.0487786,129.21,129.18,0.05272749]
[1744528823144,7.7419,129.19,129.18,0.05272749]
[1744528823346,38.92210881,129.2,129.11,28.54]
[1744528823547,12.37730881,129.18,129.11,28.54]
[1744528823748,1.9952,129.18,129.11,28.54]
[1744528824453,0.05001072,129.16,129.14,7.7443]
[1744528825650,0.05001072,129.16,129.15,7.7443]
[1744528826551,0.05001072,129.16,129.14,7.7446]
[1744528828652,0.05001072,129.16,129.15,7.7443]
[1744528829351,0.05001072,129.16,129.13,0.05823623]
[1744528829552,10.43211953,129.16,129.13,0.05823623]
[1744528831346,7.7449,129.14,129.13,0.05823623]
[1744528831552,10.38210881,129.14,129.08,28.54]
[1744528831752,38.94210881,129.14,129.08,28.54]
[1744528831951,7.7458,129.13,129.09,7.7476]
[1744528832454,7.7464,129.12,129.09,7.7478]
[1744528832650,0.05148817,129.12,129.1,0.05370145]
[1744528833052,0.05148817,129.12,129.1,7.80060145]
[1744528833752,0.05148817,129.12,129.1,0.05370145]
[1744528834252,7.79798817,129.12,129.1,0.05370145]
[1744528834549,0.05148817,129.12,129.1,0.05370145]
[1744528834757,7.7467,129.11,129.1,0.05370145]
[1744528839056,7.7467,129.11,129.05,28.56]
[1744528839057,7.7486,129.08,129.01,623.70210881]
[1744528839355,10.38210881,129.08,129.02,28.56]
[1744528839555,38.94210881,129.08,129.0,28.56]
[1744528839857,7.7502,129.06,129.02,7.7518]
[1744528840057,28.56,129.08,129.0,38.94210881]
[1744528840356,0.0549603,129.05,129.0,38.94210881]
[1744528841659,0.0549603,129.05,129.03,7.7511]
[1744528842255,0.0549603,129.05,129.0,38.94210881]
[1744528842458,0.0549603,129.05,129.04,7.7509]
[1744528842750,0.0549603,129.05,129.04,36.3109]
[1744528845457,0.0549603,129.05,129.04,28.56]
[1744528845661,0.0549603,129.05,129.03,7.7513]
[1744528845966,0.0549603,129.05,129.01,28.56]
[1744528846154,0.0549603,129.05,129.02,7.7517]
[1744528848361,0.0549603,129.05,129.01,28.56]
[1744528848860,0.0549603,129.05,129.04,7.7509]
[1744528849363,0.0549603,129.05,129.04,36.3109]
[1744528855266,0.0549603,129.05,129.03,7.7513]
[1744528857369,7.8053603,129.05,129.02,7.7519]
[1744528858471,0.0549603,129.05,129.03,7.7514]
[1744528858873,0.0549603,129.05,129.01,28.56]
[1744528859071,0.0549603,129.05,129.04,7.7509]
[1744528859371,0.0549603,129.05,129.01,28.56]
[1744528859572,0.0549603,129.05,129.02,7.752]
[1744528859773,0.0549603,129.05,128.98,28.56]
[1744528860175,7.7513,129.04,129.0,7.7532]
[1744528860566,7.7513,129.04,128.98,28.56]
[1744528861064,0.05917357,129.02,128.98,28.56]
[1744528861273,0.05917357,129.02,129.01,7.7527]
[1744528866377,0.05917357,129.02,129.01,36.3127]
[1744528869078,28.56,129.09,129.01,28.56]
[1744528869980,7.7489,129.08,129.04,7.7503]
[1744528870279,0.05697943,129.06,129.04,7.8055015]
[1744528871076,0.05697943,129.06,129.05,7.7503]
[1744528872477,46.73908824,129.06,128.97,29.8283]
[1744528872681,4.1253,129.05,128.97,28.56]
[1744528872981,7.7514,129.04,129.0,7.753]
[1744528873281,6.3068,129.05,129.0,7.753]
[1744528873477,6.3068,129.05,128.97,28.56]
[1744528873781,10.43111651,129.04,128.97,28.56]
[1744528874781,10.43111651,129.04,128.99,7.7536]
[1744528874977,10.43111651,129.04,128.97,28.56]
[1744528875277,7.7525,129.02,128.97,28.56]
[1744528875485,7.7525,129.02,128.99,7.7538]
[1744528875684,0.05936307,129.01,128.99,7.7538]
[1744528877686,7.81206307,129.01,128.98,7.7543]
[1744528877985,0.05936307,129.01,128.94,28.56]
[1744528878187,7.7542,128.99,128.95,7.7558]
[1744528878588,0.05042096,128.98,128.96,7.7556]
[1744528878781,0.05042096,128.98,128.94,28.56]
[1744528878987,7.80532096,128.98,128.94,28.56]
[1744528879188,7.80532096,128.98,128.94,36.3165]
[1744528879485,0.05042096,128.98,128.94,28.56]
[1744528880380,0.05042096,128.98,128.95,7.7557]
[1744528880687,0.05042096,128.98,128.94,28.56]
[1744528880884,0.05042096,128.98,128.97,7.7551]
[1744528881391,28.56,129.04,129.0,7.7527]
[1744528881891,36.3113,129.04,129.0,7.7527]
[1744528882092,36.3113,129.04,128.97,28.56]
[1744528882093,28.56,129.04,128.97,28.56]
[1744528882589,0.0543553,129.02,129.0,10.38210881]
[1744528882785,28.56,129.07,129.01,28.56]
[1744528882989,72.29681408,129.09,129.01,28.56]
[1744528883181,10.38210881,129.08,129.01,28.56]
[1744528883386,72.29681408,129.06,129.01,28.56]
[1744528884088,72.29681408,129.06,129.03,7.7511]
[1744528884493,72.29681408,129.06,129.01,28.56]
[1744528884786,72.29681408,129.06,129.05,7.7503]
[1744528885693,0.05908718,129.07,129.06,7.7497]
[1744528890292,0.05908718,129.07,129.05,7.80336462]
[1744528891192,0.05908718,129.07,129.06,7.7497]
[1744528895089,0.05908718,129.07,129.05,7.80346462]
[1744528896090,0.05908718,129.07,129.06,7.7497]
[1744528902895,28.56,129.13,129.08,7.7484]
[1744528903399,7.7464,129.12,129.08,7.7484]
[1744528904100,0.05593593,129.11,129.09,7.80408185]
[1744528906603,0.05593593,129.11,129.09,0.05628185]
[1744528907498,10.38210881,129.1,129.04,28.56]
[1744528907801,10.38210881,129.06,129.01,28.54]
[1744528908102,10.38210881,129.04,128.98,28.54]
[1744528908401,10.38210881,129.02,128.98,28.54]
[1744528908596,0.05741743,129.01,128.99,7.80913778]
[1744528911909,0.05741743,129.01,129.0,7.7533]
[1744528918409,0.05741743,129.01,128.99,7.80943778]
[1744528918609,0.05741743,129.01,128.99,0.05563778]
[1744528918908,0.05741743,129.01,129.0,7.7533]
[1744528919415,0.05741743,129.01,128.99,0.05563778]
[1744528919605,0.05741743,129.01,128.99,7.80953778]
[1744528919909,0.05741743,129.01,128.99,0.05563778]
[1744528920212,7.81031743,129.01,128.99,0.05563778]
[1744528920612,0.05741743,129.01,128.99,0.05563778]
[1744528921706,0.05741743,129.01,128.99,7.80903778]
[1744528922212,0.05741743,129.01,129.0,7.7533]
[1744528922406,0.05741743,129.01,128.99,0.05563778]
[1744528923612,0.05741743,129.01,129.0,7.7533]
[1744528923919,0.05741743,129.01,129.0,36.2933]
[1744528928311,0.05741743,129.01,129.0,28.54]
[1744528928514,0.05741743,129.01,128.99,0.05563778]
[1744528930016,0.05741743,129.01,128.99,7.80943778]
[1744528931017,7.81021743,129.01,128.99,0.05563778]
[1744528931416,6.66870545,129.0,128.99,0.05563778]
[1744528931614,6.66870545,129.0,128.97,28.56]
[1744528931814,6.66870545,128.98,128.94,28.56]
[1744528932418,14.42220545,129.0,128.94,35.22870545]
[1744528932614,0.05058299,128.98,128.96,0.05756738]
[1744528933921,0.05058299,128.98,128.97,7.755]
[1744528934419,0.05058299,128.98,128.97,36.315]
[1744528944232,0.05058299,128.98,128.96,7.81296738]
[1744528944426,0.05058299,128.98,128.96,0.05756738]
[1744528947332,28.54,128.97,128.88,29.8135]
[1744528947531,2.1615,128.96,128.88,29.8135]
[1744528947730,20.34089923,128.96,128.92,7.7576]
[1744528948130,2.1615,128.96,128.88,40.23699923]
[1744528948532,0.05803868,128.93,128.88,40.23699923]
[1744528949038,0.05803868,128.93,128.92,7.7581]
[1744528949239,0.05803868,128.93,128.88,40.23699923]
[1744528949942,0.05803868,128.93,128.92,7.7581]
[1744528952943,2.0248,128.97,128.94,7.7564]
[1744528953542,9.7802,128.97,128.94,7.7564]
[1744528953737,2.0248,128.97,128.91,28.56]
[1744528953938,14.62119923,128.96,128.91,28.56]
[1744528954242,7.7572,128.94,128.88,28.56]
[1744528954842,7.7572,128.94,128.9,7.7587]
[1744528955046,7.7588,128.91,128.86,1.34988363]
[1744528955241,6.67860255,128.92,128.87,6.67860255]
[1744528955446,0.05059441,128.9,128.89,14.43790255]
[1744528955941,39.43630255,128.96,128.93,7.7574]
[1744528956242,6.67860255,128.94,128.89,6.67860255]
[1744528956639,39.43630255,128.96,128.89,6.67860255]
[1744528957044,39.43630255,128.96,128.93,7.7575]
[1744528957348,0.05501943,128.94,128.93,7.7575]
[1744528961840,28.56,129.0,128.97,7.7545]
[1744528962243,28.56,129.0,128.93,28.56]
[1744528962443,28.56,129.0,128.93,38.98816821]
[1744528962947,0.05493246,128.98,128.95,0.05674511]
[1744528963146,0.05493246,128.98,128.97,7.7551]
[1744528978062,36.3117,129.03,128.99,7.7533]
[1744528978367,36.3117,129.03,128.96,28.56]
[1744528979062,36.3117,129.03,129.0,7.7529]
[1744528979366,0.05895754,129.01,129.0,7.7529]
[1744528979671,0.05895754,129.01,128.99,7.7536]
[1744528982268,0.05895754,129.01,129.0,7.7533]
[1744528983860,0.05895754,129.01,128.98,0.05139771]
[1744528984060,6.668645,129.0,128.98,0.05139771]
[1744528984460,6.668645,129.0,128.98,7.80559771]
[1744528985976,6.668645,129.0,128.98,0.05139771]
[1744528987470,6.668645,129.0,128.98,7.80579771]
[1744528988776,14.421945,129.0,128.98,0.05139771]
[1744528989276,6.668645,129.0,128.98,0.05139771]
[1744528989777,6.668645,129.0,128.98,7.80579771]
[1744528989978,72.29681408,129.06,128.99,6.668645]
[1744528990279,78.96545908,129.06,128.99,6.668645]
[1744528990478,7.7505,129.05,129.01,7.7524]
[1744528991177,6.7243751,129.04,129.02,0.05775969]
[1744528993475,14.4752751,129.04,129.02,0.05775969]
[1744528994382,6.7243751,129.04,129.02,0.05775969]
[1744528994881,6.7243751,129.04,129.02,7.80975969]
[1744528995379,6.7243751,129.04,129.02,0.05775969]
[1744528997382,0.0557301,129.04,129.02,0.05775969]
[1744528997880,6.668645,129.03,129.02,0.05775969]
[1744529000990,0.0557301,129.04,129.02,0.05775969]
[1744529001188,6.7243751,129.04,129.02,0.05775969]
[1744529002290,6.7243751,129.04,129.02,7.80985969]
[1744529002491,0.0557301,129.04,129.02,0.05775969]
[1744529002688,6.7243751,129.04,129.02,0.05775969]
[1744529003491,14.4752751,129.04,129.02,0.05775969]
[1744529003691,6.7243751,129.04,129.02,0.05775969]
[1744529003890,6.7243751,129.04,128.98,28.54]
[1744529004091,6.668645,129.02,129.0,7.7533]
[1744529004999,0.0557301,129.04,129.02,7.7521]
[1744529005395,0.0557301,129.04,129.01,35.188645]
[1744529005699,0.0557301,129.04,129.03,7.7515]
[1744529009904,0.0557301,129.04,129.02,7.7518]
[1744529012099,0.0557301,129.04,129.01,36.2724]
[1744529012303,6.668645,129.03,129.0,0.05612849]
[1744529012602,14.420545,129.03,129.0,0.05612849]
[1744529013803,14.420545,129.03,129.0,7.80932849]
[1744529014007,14.420545,129.03,129.0,0.05612849]
[1744529015003,6.668645,129.03,129.0,0.05612849]
[1744529015203,8.751545,129.03,129.0,0.05612849]
[1744529015405,7.7525,129.02,129.0,0.05612849]
[1744529015903,7.7527,129.01,129.0,0.05612849]
[1744529016292,14.421345,129.01,129.0,0.05612849]
[1744529019400,8.751545,129.03,129.0,0.05612849]
[1744529020111,16.503545,129.03,129.0,0.05612849]
[1744529020907,7.7521,129.02,129.0,0.05612849]
[1744529025801,7.7516,129.03,129.0,7.80912849]
[1744529026007,0.0557301,129.04,129.0,7.80912849]
[1744529026509,14.420445,129.03,129.0,7.80912849]
[1744529026809,14.420445,129.03,129.0,0.05612849]
[1744529028514,6.668645,129.03,129.0,0.05612849]
[1744529030113,7.7524,129.02,129.0,0.05612849]
[1744529030412,6.668645,129.01,128.94,35.188645]
[1744529030612,7.7538,129.0,128.96,7.7555]
[1744529031414,0.05593496,128.99,128.97,0.05813001]
[1744529033512,7.80993496,128.99,128.97,0.05813001]
[1744529034518,7.7545,128.98,128.97,0.05813001]
[1744529037519,14.47867996,128.99,128.97,0.05813001]
[1744529037717,6.72457996,128.99,128.97,0.05813001]
[1744529038118,7.7545,128.98,128.97,0.05813001]
[1744529040623,14.47867996,128.99,128.97,0.05813001]
[1744529041926,0.05593496,128.99,128.97,0.05813001]
[1744529042222,0.05593496,128.99,128.97,28.57813001]
[1744529042426,0.05593496,128.99,128.98,6.668645]
[1744529042724,0.05593496,128.99,128.98,14.423145]
[1744529043727,0.05593496,128.99,128.98,42.943145]
[1744529044326,0.05593496,128.99,128.98,28.52]
[1744529044725,0.05593496,128.99,128.97,7.81293001]
[1744529051030,0.05593496,128.99,128.97,0.05813001]
[1744529053532,0.05593496,128.99,128.97,7.81303001]
[1744529055040,0.05593496,128.99,128.98,7.7545]
[1744529056535,0.05593496,128.99,128.98,36.2745]
[1744529056733,0.05593496,128.99,128.98,42.943145]
[1744529061245,0.05593496,128.99,128.98,28.52]
[1744529061550,0.05593496,128.99,128.97,7.81273001]
[1744529062049,6.72457996,128.99,128.97,0.05813001]
[1744529062252,6.72457996,128.99,128.92,642.56]
[1744529062547,6.668645,128.97,128.92,28.5]
[1744529062748,14.423945,128.97,128.94,7.7566]
[1744529063551,14.48193857,128.97,128.94,7.80687718]
[1744529063848,14.48193857,128.97,128.94,0.05027718]
[1744529064042,7.7563,128.95,128.94,0.05027718]
[1744529064248,14.424945,128.95,128.94,0.05027718]
[1744529072954,6.668645,128.95,128.94,0.05027718]
[1744529073857,2.1356,128.96,128.94,0.05027718]
[1744529074257,42.98203857,128.97,128.94,7.80717718]
[1744529074657,35.22663857,128.97,128.94,0.05027718]
[1744529074856,6.668645,128.95,128.9,28.5]
[1744529075962,7.81490519,128.94,128.9,36.2588]
[1744529078561,0.05760519,128.94,128.9,35.168645]
[1744529079059,0.05760519,128.94,128.91,7.7584]
[1744529080262,0.05760519,128.94,128.92,7.758]
[1744529081664,0.05760519,128.94,128.91,7.7584]
[1744529082060,14.426345,128.93,128.9,28.5]
[1744529082268,6.668645,128.91,128.86,649.348645]
[1744529082565,0.05471428,128.9,128.86,28.52]
[1744529083162,6.668645,128.89,128.86,28.52]
[1744529083367,6.668645,128.87,128.82,1.35035505]
[1744529083564,6.668645,128.85,128.8,6.668645]
[1744529083763,0.058451,128.86,128.84,7.7629]
[1744529084162,7.7645,128.82,128.79,1.35056468]
[1744529084362,35.188645,128.85,128.74,100.32702731]
[1744529084363,6.668645,128.81,128.75,6.668645]
[1744529084563,6.668645,128.81,128.77,6.668645]
[1744529084768,0.05311344,128.8,128.77,7.7667]
[1744529085170,0.05311344,128.8,128.74,100.32702731]
[1744529085371,6.668645,128.79,128.74,106.99567231]
[1744529085875,6.668645,128.79,128.76,7.7674]
[1744529086171,0.05311344,128.8,128.74,6.668645]
[1744529086473,0.05311344,128.8,128.77,7.7668]
[1744529086672,0.05311344,128.8,128.76,35.188645]
[1744529086871,6.668645,128.81,128.76,35.208645]
[1744529087071,0.05526676,128.79,128.78,7.7665]
[1744529091876,30.5727,128.85,128.82,7.7639]
[1744529092075,28.54,128.85,128.82,7.7639]
[1744529092979,28.59211363,128.85,128.82,7.815001]
[1744529093179,0.05211363,128.85,128.82,7.815001]
[1744529095278,0.05211363,128.85,128.82,0.051101]
[1744529096586,0.05211363,128.85,128.82,7.814801]
[1744529100789,0.05211363,128.85,128.84,7.7629]
[1744529101289,0.05211363,128.85,128.82,0.051101]
[1744529101487,0.05211363,128.85,128.83,7.7631]
[1744529102289,0.05211363,128.85,128.84,7.7629]
[1744529103089,28.54,128.91,128.84,10.45266422]
[1744529103390,7.7584,128.92,128.85,28.54]
[1744529103687,7.7584,128.92,128.88,7.7604]
[1744529104089,0.04894136,128.91,128.89,0.05318131]
[1744529104693,0.04894136,128.91,128.89,7.81288131]
[1744529104892,0.04894136,128.91,128.89,0.05318131]
[1744529108694,0.04894136,128.91,128.89,7.81278131]
[1744529108994,0.04894136,128.91,128.89,0.05318131]
[1744529109599,10.45266422,128.97,128.89,0.05318131]
[1744529109797,38.97266422,128.97,128.88,38.97266422]
[1744529110190,2.0126,128.99,128.92,10.45266422]
[1744529110491,72.29681408,129.0,128.93,32.6268]
[1744529110894,0.05578311,128.98,128.95,0.05720459]
[1744529111395,0.05578311,128.98,128.96,7.7557]
[1744529112196,0.05578311,128.98,128.95,0.05720459]
[1744529112395,7.81038311,128.98,128.95,0.05720459]
[1744529112697,0.05578311,128.98,128.95,7.81350459]
[1744529113092,0.05578311,128.98,128.95,0.05720459]
[1744529114700,0.05578311,128.98,128.96,7.7556]
[1744529115195,0.05578311,128.98,128.95,0.05720459]
[1744529115388,0.05578311,128.98,128.95,7.81330459]
[1744529115696,0.05578311,128.98,128.95,0.05720459]
[1744529115900,39.02844733,128.98,128.95,0.05720459]
[1744529116397,10.45266422,128.96,128.9,28.52]
[1744529117391,10.45266422,128.96,128.92,0.04947097]
[1744529117698,0.05557457,128.94,128.92,0.04947097]
[1744529118195,0.05557457,128.94,128.92,7.80717097]
[1744529119501,0.05557457,128.94,128.92,0.04947097]
[1744529120294,7.81297457,128.94,128.92,0.04947097]
[1744529120698,0.05557457,128.94,128.92,0.04947097]
[1744529121197,7.81247457,128.94,128.92,0.04947097]
[1744529121895,10.50823879,128.94,128.85,4.1452]
[1744529122100,10.45266422,128.92,128.82,29.8501193]
[1744529122300,28.5,128.91,128.83,28.5]
[1744529122495,7.7597,128.9,128.85,7.7617]
[1744529123200,0.05044271,128.89,128.86,0.04964619]
[1744529125601,0.05044271,128.89,128.86,7.81124619]
[1744529125804,0.05044271,128.89,128.86,28.54964619]
[1744529126207,0.05044271,128.89,128.88,7.7605]
[1744529128007,0.05044271,128.89,128.86,28.54964619]
[1744529128507,0.05044271,128.89,128.86,36.31074619]
[1744529132303,7.81034271,128.89,128.86,0.04964619]
[1744529133814,7.81034271,128.89,128.86,7.81124619]
[1744529134516,0.05044271,128.89,128.87,7.761]
[1744529134716,0.05044271,128.89,128.86,0.04964619]
[1744529135118,0.05044271,128.89,128.87,7.7611]
[1744529135616,0.05044271,128.89,128.86,0.04964619]
[1744529135816,0.05044271,128.89,128.86,7.81094619]
[1744529136013,0.05044271,128.89,128.86,0.04964619]
[1744529136614,0.05044271,128.89,128.87,7.761]
[1744529147224,0.05044271,128.89,128.86,7.81104619]
[1744529147225,7.81044271,128.89,128.86,7.81104619]
[1744529147422,7.81044271,128.89,128.86,0.04964619]
[1744529147624,0.05044271,128.89,128.86,0.04964619]
[1744529147818,0.05044271,128.89,128.87,7.7611]
[1744529149734,0.05044271,128.89,128.88,7.7605]
[1744529150331,0.05044271,128.89,128.87,7.7609]
[1744529151126,0.05044271,128.89,128.88,7.7605]
[1744529151533,0.05044271,128.89,128.86,28.56964619]
[1744529151733,0.05044271,128.89,128.87,7.7605]
[1744529152031,0.05044271,128.89,128.86,28.56964619]
[1744529152435,0.05044271,128.89,128.87,7.7607]
[1744529157539,0.05044271,128.89,128.88,7.7605]
[1744529158438,0.05044271,128.89,128.87,7.7608]
[1744529160839,0.05044271,128.89,128.88,7.7605]
[1744529163641,0.05044271,128.89,128.87,7.7608]
[1744529165839,0.05044271,128.89,128.88,7.7605]
[1744529166941,6.67883909,128.93,128.9,7.7587]
[1744529167146,72.29681408,128.94,128.89,6.67883909]
[1744529167541,6.67883909,128.93,128.89,6.67883909]